[Event "Israeli Team-ch 2023"]
[Site "Petah Tikva"]
[Date "2023.02.03"]
[Round "5.18"]
[White "Zlatin, Alexander"]
[Black "Golod, Vitali"]
[Result "1-0"]
[ECO "C55"]
[WhiteElo "2324"]
[BlackElo "2501"]
[Annotator "TA"]
[PlyCount "130"]
[EventDate "2023.01.13"]
[EventCountry "ISR"]
[SourceTitle "playchess.com"]
[Source "ChessBase"]
[SourceQuality "1"]
[TimeControl "40/5400+30:1800+30"]

{[%evp 10,130,21,25,33,22,14,25,20,0,18,8,0,2,8,7,12,16,12,0,0,-2,12,8,10,-56,-29,-36,-29,-33,-39,-43,-39,-41,-13,-28,-21,-37,-29,-40,-35,-20,-12,-25,0,0,0,0,0,0,0,0,0,-62,-54,-64,-32,-60,-29,-91,-96,-95,-93,-126,-126,-131,-111,-180,-112,-150,-162,-168,-154,-153,-153,-158,-162,-168,-145,-206,-187,-280,-281,-253,-239,-341,-346,-431,-428,-541,-541,-532,-532,-531,-527,-477,-451,-810,-808,-805,-792,-752,-780,-752,-743,-718,-707,-718,-700,-826,-805,-5181,-4793,-5173,-3808,-3549,-2702,-29976,-29974,-29977,-29978,-29979,-29971]} 1. e4 {[%emt 0:03:24]} e5 {[%emt 0:02:47]} 2. Nf3 {[%emt 0:00:30]} Nc6 {[%emt 0:04:03]} 3. Bc4 {[%emt 0:00:00]} Nf6 {[%emt 0:00:44]} 4. d3 {[%emt 1:28:36]} Be7 5. c3 {[%emt 0:00:00]} O-O {[%emt 0:00:52]} 6. Nbd2 {[%emt 0:00:00]} d6 {[%emt 0:00:37] C55: Two Knights: 4 d3, 4 d4 exd4 5 e5 and Max Lange Attack.} 7. Bb3 {[%emt 0:00:00]} Na5 {[%emt 0:01:35]} 8. Bc2 {[%emt 0:00:00]} c5 {[%emt 0:00:06] White has an edge.} 9. a4 {[%emt 0:00:00] [#]} Re8 $146 {[%emt 0:08:34]} ({Predecessor:} 9... Nc6 10. O-O h6 11. Re1 Be6 12. Nf1 Re8 13. Ng3 Bf8 14. h3 g6 15. Nh2 Bg7 {½-½ Rincon Gonzalez,R (1836)-Rincon Gonzalez,L (1971) Merida Rincon Gonzalez 1st B 2012 (3.1)}) 10. h3 {[%emt 0:00:00]} Bf8 {[%emt 0:02:26]} 11. Nc4 {[%emt 0:00:00]} h6 {[%emt 0:05:01]} 12. O-O {[%emt 0:00:00]} Be6 {[%emt 0:01:42]} 13. Nxa5 {[%emt 0:00:00]} Qxa5 {[%emt 0:00:14]} 14. c4 {[%emt 0:00:00]} Qc7 15. Nh2 {[%emt 0:05:30]} b6 {[%emt 0:15:55]} 16. Qf3 {[%emt 0:00:30][%cal Oc1h6]} Be7 {[%emt 0:53:54]} 17. g4 {[%emt 0:00:00]} (17. Bd2 $11) 17... Nh7 {[%emt 0:00:00]} 18. Qg3 Bg5 19. f4 Bxf4 {[%emt 0:01:30]} 20. Bxf4 {[%emt 0:02:00]} exf4 {[%emt 0:00:30]} 21. Rxf4 {[%emt 0:00:30]} a6 {[%emt 0:00:30][%cal Ob6b5]} 22. Nf1 {[%emt 0:00:30]} b5 {[%emt 0:00:30]} 23. Ne3 {[%emt 0:00:30]} (23. axb5 axb5 24. Rxa8 Rxa8 $17) 23... Rab8 {[%emt 0:00:30]} 24. axb5 {[%emt 0:00:00]} axb5 {[%emt 0:00:00]} 25. b3 {[%emt 0:00:00]} Ra8 {[%emt 0:00:00]} 26. Raf1 {[%emt 0:00:00]} bxc4 {[%emt 0:00:00]} 27. dxc4 {[%emt 0:00:00]} Ra2 {[%emt 0:00:00]} 28. R4f2 {[%emt 0:00:00]} Rea8 {[%emt 0:00:00]} 29. Nd5 {[%emt 0:00:00]} Qd8 {[%emt 0:00:00]} 30. Qd3 {[%emt 0:00:00][%cal Oe4e5]} Nf8 {[%emt 0:00:00][%cal Bh7f8,Bf8g6,Bg6e5][%mdl 32]} 31. Nc3 {[%emt 0:00:00]} (31. Nf4 $1 $11) 31... Ra1 $15 {[%emt 0:00:00]} 32. Bb1 {[%emt 0:00:00]} R1a6 {[%emt 0:00:00]} 33. Nb5 {[%emt 0:00:00]} Qe7 {[%emt 0:00:00]} 34. Nc3 {[%emt 0:00:00]} (34. e5 $11 {keeps the balance.} dxe5 35. Qe3) 34... Ng6 $17 {[%emt 0:00:00] White is now going downhill.} 35. Nd5 {[%emt 0:00:00]} Qd8 {[%emt 0:00:00]} 36. Nf4 {[%emt 0:00:00]} Ne5 {[%emt 0:00:00]} 37. Qg3 {[%emt 0:00:00]} Qg5 {[%emt 0:00:00]} 38. Rg2 {[%emt 0:00:18] [#]} (38. Rd1 $17) 38... Ra1 {[%emt 0:00:00]} (38... Ra3 $1 $19 {aiming for ...Bxc4.} 39. Nxe6 fxe6) 39. h4 {[%emt 0:00:34]} Qxg4 {[%emt 0:02:20]} 40. Qf2 {[%emt 0:04:08] [#]} Nf3+ $1 {[%emt 0:03:11][%mdl 576] Deflection} 41. Qxf3 {[%emt 0:30:05]} Qxf3 {[%emt 0:30:04]} (41... Qxh4 {is a self mate.} 42. Nxe6 R8a7 43. Rxg7+ Kh8 44. Qf5 (44. Rxf7 Rxf7 45. Qxf7 Qg3+ 46. Kh1 Qh3+ 47. Kg1 Qg3+ 48. Kh1 Qh3+ 49. Kg1 Qg3+ $11) (44. Rxf7 Rxf7 45. Qxf7 Qg3+ 46. Kh1 Qh3+ 47. Kg1 Qg3+ 48. Kh1 Qh3+ 49. Kg1 Qg3+ $11)) 42. Rxf3 {[%emt 0:04:25] Black must now prevent Rf1.} Rxb1+ {[%emt 0:00:07]} 43. Kh2 {[%emt 0:00:00]} Raa1 {[%emt 0:01:34]} 44. Re3 {[%emt 0:00:00]} (44. Nxe6 $17 fxe6 45. Kg3) 44... Re1 {[%emt 0:00:00]} 45. Rge2 {[%emt 0:00:00]} (45. Rxe1 {keeps fighting.} Rxe1 46. Nd5) 45... Rh1+ $19 {[%emt 0:00:00]} 46. Kg3 {[%emt 0:02:00]} Rag1+ {[%emt 0:00:00]} 47. Rg2 {[%emt 0:00:00]} (47. Kf2 {was forced.}) 47... Rxg2+ {[%emt 0:00:00]} 48. Nxg2 {[%emt 0:00:00][%mdl 4096] Endgame KRB-KRN} Rh3+ {[%emt 0:00:00]} 49. Kf4 {[%emt 0:00:00]} f6 {[%emt 0:00:00]} 50. Rxh3 {[%emt 0:00:00]} Bxh3 {[%emt 0:00:00] KB-KN} 51. Ne3 {[%emt 0:00:00]} g5+ {[%emt 0:00:00]} 52. Kg3 {[%emt 0:00:00]} Be6 {[%emt 0:00:00]} 53. h5 {[%emt 0:00:00]} (53. Nd1 $142 Kf7 54. Nf2) 53... Kf7 {[%emt 0:00:00]} 54. Kf3 {[%emt 0:00:00]} Ke7 {[%emt 0:00:00]} 55. Kg3 {[%emt 0:00:00]} Kd7 {[%emt 0:00:00]} 56. Kf3 {[%emt 0:00:00]} Kc6 {[%emt 0:00:00]} 57. Nd1 {[%emt 0:02:00]} Kc7 {[%emt 0:00:00]} 58. Nc3 {[%emt 0:00:44]} Kd7 {[%emt 0:00:00]} 59. Nd1 {[%emt 0:00:59]} Bf7 {[%emt 0:00:00]} 60. Kg4 {[%emt 0:00:04]} Ke6 {[%emt 0:00:00]} 61. Nc3 {[%emt 0:00:40]} Ke5 {[%emt 0:00:00]} 62. Nb5 {[%emt 0:00:03]} Be8 {[%emt 0:00:00] ( -> ...Bc6)} (62... Kxe4 {gets mated.} 63. Nxd6+ Ke3 64. Nxf7 f5+ 65. Kxf5 g4 66. Kxg4 Ke4 67. Nxh6) 63. Nc3 {[%emt 0:00:19]} Bc6 {[%emt 0:00:00] Black mates.} 64. Kf3 {[%emt 0:00:20]} f5 {[%emt 0:00:00]} 65. Ke3 {[%emt 0:00:04]} Bxe4 {[%emt 0:00:00][%mdl 32768] Weighted Error Value: White=0.52/Black=0.06 (flawless) . Loss on time!?} 1-0

[Event "Israeli Team-ch 2023"]
[Site "Petah Tikva"]
[Date "2023.02.03"]
[Round "5.19"]
[White "Soffer, Ram"]
[Black "Greenfeld, Alon"]
[Result "1/2-1/2"]
[ECO "B45"]
[WhiteElo "2475"]
[BlackElo "2460"]
[Annotator "TA"]
[PlyCount "64"]
[EventDate "2023.01.13"]
[EventCountry "ISR"]
[SourceTitle "playchess.com"]
[Source "ChessBase"]
[SourceQuality "1"]
[TimeControl "40/5400+30:1800+30"]

{[%evp 16,64,22,0,34,34,22,0,0,0,42,26,25,20,29,12,12,-13,-14,-18,-19,-19,-19,-28,-17,-45,-34,-65,-52,-59,-52,-65,-65,-72,-69,-70,-61,-96,-88,-91,-50,-58,-59,-58,-54,-59,-47,-47,-47,-48,8]} 1. e4 {[%emt 0:00:11]} c5 {[%emt 0:08:10]} 2. Nf3 {[%emt 0:00:03]} e6 {[%emt 0:02:07]} 3. d4 {[%emt 0:00:15]} cxd4 {[%emt 0:00:16]} 4. Nxd4 {[%emt 0:00:03]} Nf6 {[%emt 0:00:42]} 5. Nc3 {[%emt 0:00:06]} Nc6 {[%emt 0:00:15]} 6. Nxc6 {[%emt 0:00:06]} bxc6 {[%emt 0:00:16]} 7. e5 {[%emt 0:00:03]} Nd5 {[%emt 0:00:22]} 8. Ne4 {[%emt 0:00:03]} Qc7 {[%emt 0:00:54]} 9. f4 $1 {[%emt 0:00:09]} Rb8 {[%emt 0:01:32] B45: Sicilian Four Knights.} 10. Bd3 {[%emt 0:20:36]} Qb6 {[%emt 0:02:45]} 11. Qe2 {[%emt 0:05:32]} Be7 {[%emt 0:01:22] The position is equal.} 12. c4 {[%emt 0:04:32] [#]} Nb4 $146 {[%emt 0:21:20]} (12... f5 $5 {[%cal Rf5e4]} 13. Nd6+ Bxd6 14. exd6 Nf6 $11) ({Predecessor:} 12... f5 13. Nd6+ Bxd6 14. exd6 Nf6 15. b3 O-O 16. Bb2 a5 17. O-O-O a4 18. Bc2 axb3 19. axb3 {1-0 Santos Ruiz,M (2560)-Praggnanandhaa,R (2567) Wch U20 58th 2019 (8)}) 13. Be3 {[%emt 0:15:30]} Nxd3+ {[%emt 0:01:27]} 14. Qxd3 {[%emt 0:00:14]} c5 {[%emt 0:00:48]} (14... Bh4+ $2 15. g3 Qa5+ 16. Bd2 $18) 15. b3 {[%emt 0:07:59] Active counter play!} Bb7 {[%emt 0:10:14]} 16. Nd6+ {[%emt 0:02:08]} Bxd6 {[%emt 0:00:18]} 17. Qxd6 {[%emt 0:00:05]} Qxd6 {[%emt 0:00:18]} ({Don't do} 17... Bxg2 18. Rg1 (18. Bxc5 Qxd6 19. Bxd6 Bxh1 $16) 18... Qxd6 19. exd6 $16) 18. exd6 {[%emt 0:00:04]} Rc8 $1 {[%emt 0:00:33]} ({Much less strong is} 18... Bxg2 19. Rg1 Be4 20. Bxc5 $16 (20. Rxg7 Rc8 $14)) 19. O-O {[%emt 0:14:42]} Be4 {[%emt 0:03:47]} 20. Rfe1 {[%emt 0:02:33][%cal Oe3c5]} f5 {[%emt 0:04:22]} 21. Rad1 {[%emt 0:00:13]} Kf7 {[%emt 0:02:31]} 22. Re2 {[%emt 0:05:06]} Rc6 {[%emt 0:02:03]} 23. Rb2 {[%emt 0:00:27]} Rb8 {[%emt 0:10:22]} 24. h3 {[%emt 0:00:34]} a5 {[%emt 0:04:46]} 25. Kh2 {[%emt 0:00:40]} a4 {[%emt 0:01:47]} 26. Bf2 {[%emt 0:00:44]} axb3 {[%emt 0:06:02]} 27. axb3 {[%emt 0:00:18]} Rcb6 {[%emt 0:01:06]} 28. Bxc5 {[%emt 0:00:41] Black is slightly better.} Rxb3 {[%emt 0:00:07]} 29. Rxb3 {[%emt 0:00:24]} Rxb3 {[%emt 0:00:01]} 30. Bd4 $1 {[%emt 0:03:17] Repels Rb2} h6 {[%emt 0:03:24]} 31. h4 $1 {[%emt 0:10:05]} Kg6 {[%emt 0:04:46]} 32. Rd2 $1 {[%emt 0:00:30]} Rd3 {[%emt 0:03:43] Weighted Error Value: White=0.09 (flawless) /Black=0.08 (flawless)} (32... Rb4 $15) 1/2-1/2

[Event "Israeli Team-ch 2023"]
[Site "Petah Tikva"]
[Date "2023.02.03"]
[Round "5.21"]
[White "Bakalchuk, Johnatan"]
[Black "Dvoirys, Semen I."]
[Result "1/2-1/2"]
[ECO "B92"]
[WhiteElo "2442"]
[BlackElo "2465"]
[Annotator "TA"]
[PlyCount "60"]
[EventDate "2023.01.13"]
[EventCountry "ISR"]
[SourceTitle "playchess.com"]
[Source "ChessBase"]
[SourceQuality "1"]
[TimeControl "40/5400+30:1800+30"]

{[%evp 19,60,1,15,0,0,-24,-29,-33,-33,-35,-28,-21,-22,-22,-18,-37,-5,-16,0,-14,-6,-12,-17,-28,-28,-25,-39,-63,0,-4,0,0,0,8,0,0,0,0,0,0,0,0,0]} 1. e4 {[%emt 0:01:41]} c5 {[%emt 0:00:07]} 2. Nf3 {[%emt 0:00:04]} d6 {[%emt 0:00:18]} 3. d4 {[%emt 0:00:09]} cxd4 {[%emt 0:00:05]} 4. Nxd4 {[%emt 0:00:04]} Nf6 {[%emt 0:00:03]} 5. Nc3 {[%emt 0:00:51]} a6 {[%emt 0:00:07]} 6. Be2 {[%emt 0:00:05]} e5 {[%emt 0:00:09]} 7. Nb3 {[%emt 0:00:06]} Be7 {[%emt 0:00:07]} 8. O-O {[%emt 0:01:59]} Be6 {[%emt 0:04:43]} 9. f4 {[%emt 0:04:58]} Qc7 {[%emt 0:00:06]} 10. f5 {[%emt 0:03:06]} Bc4 {[%emt 0:00:13]} 11. g4 {[%emt 0:07:40] Threatens to win with g5. B92: Sicilian Najdorf: 6 Be2.} h6 {[%emt 0:02:20]} 12. h4 {[%emt 0:05:27] [#]} Qc6 $146 {[%emt 0:38:16]} ({Predecessor:} 12... Nbd7 13. g5 hxg5 14. hxg5 Nh7 15. Bxc4 Qxc4 16. Qh5 O-O-O 17. Nd5 Nxg5 18. Nxe7+ Kb8 19. Qd1 Qxe4 {0-1 Lanzani,M (2357)-Garcia Ortega Mendez,J (2358) POR-chT Torres Vedras 2011 (4.5)}) 13. Bxc4 {[%emt 0:22:54] Black has an edge.} Qxc4 {[%emt 0:00:05]} 14. Qf3 {[%emt 0:01:34] [#]} d5 $1 {[%emt 0:05:12]} 15. Nxd5 {[%emt 0:03:38]} Nxd5 {[%emt 0:00:04]} 16. exd5 {[%emt 0:00:11][%cal Od5d6]} Nd7 {[%emt 0:00:10][%cal Bb8d7,Bd7f6,Bf6g4][%mdl 32]} 17. Be3 {[%emt 0:02:31]} (17. Nd2 {keeps more tension.} Qxc2 18. Ne4 Nf6 19. Nxf6+ Bxf6 20. Rf2) 17... Nf6 {[%emt 0:00:45]} (17... h5 {with more complications.} 18. d6 Bxd6 19. Rad1 hxg4 20. Qxb7 Rb8) 18. Rad1 {[%emt 0:11:10]} Qxg4+ {[%emt 0:10:34]} 19. Qxg4 {[%emt 0:00:37]} Nxg4 {[%emt 0:00:04]} 20. Bb6 {[%emt 0:01:20]} Bxh4 {[%emt 0:00:15]} 21. Na5 {[%emt 0:05:57][%cal Of1f3]} (21. d6 {is interesting.} Kd7 22. Nc5+ Kc6 23. Na4) 21... Bd8 {[%emt 0:04:00]} 22. Bxd8 {[%emt 0:03:28]} Kxd8 {[%emt 0:00:52]} 23. Rf3 {[%emt 0:01:08][%cal Of3b3] Repels Ne3} b5 {[%emt 0:07:11]} ({Black should try} 23... b6 $1 $15 24. Nc6+ Kc7) 24. Rb3 {[%emt 0:07:14] The position is equal.} (24. Rc3 $5 {[%cal Rd5d6]}) 24... Rc8 {[%emt 0:09:06]} 25. c4 {[%emt 0:07:31]} bxc4 {[%emt 0:06:31]} 26. Rb7 {[%emt 0:00:14]} Rc7 {[%emt 0:00:08] [#] And now ...Rxb7 would win.} 27. Rb8+ {[%emt 0:00:10]} Rc8 {[%emt 0:00:04]} 28. Rb7 {[%emt 0:00:05]} Rc7 {[%emt 0:01:24] Hoping for ...Rxb7.} 29. Rb8+ {[%emt 0:06:19]} Rc8 {[%emt 0:00:07]} 30. Rb7 {[%emt 0:00:50]} Rc7 $1 {[%emt 0:00:02] Weighted Error Value: White=0.05 (flawless) /Black=0.06 (flawless)} 1/2-1/2

[Event "Israeli Team-ch 2023"]
[Site "Petah Tikva"]
[Date "2023.02.03"]
[Round "5.22"]
[White "Khmelniker, Ilya"]
[Black "Ben Ari, Yannay"]
[Result "0-1"]
[ECO "D38"]
[WhiteElo "2476"]
[BlackElo "2406"]
[Annotator "TA"]
[PlyCount "92"]
[EventDate "2023.01.13"]
[EventCountry "ISR"]
[SourceTitle "playchess.com"]
[Source "ChessBase"]
[SourceQuality "1"]
[TimeControl "40/5400+30:1800+30"]

{[%evp 12,92,15,10,32,34,20,-8,-7,-20,0,-27,-29,-33,-21,-19,-23,-16,-16,-26,-19,-27,-18,-13,0,-25,-15,-29,-12,-23,-18,-32,-33,-19,-21,-23,-17,-25,-29,-28,-22,-83,-70,-94,-79,-140,-121,-136,-133,-133,-80,-122,-100,-144,-141,-147,-105,-125,-136,-125,-111,-241,-189,-249,-226,-240,-234,-238,-233,-216,-225,-308,-309,-395,-440,-422,-412,-356,-425,-651,-594,-6275,-2291]} 1. d4 {[%emt 0:02:28]} Nf6 {[%emt 0:00:23]} 2. c4 {[%emt 0:00:14]} e6 {[%emt 0:00:12]} 3. Nf3 {[%emt 0:01:12]} d5 {[%emt 0:01:18]} 4. Nc3 {[%emt 0:01:12]} Bb4 {[%emt 0:00:09]} 5. cxd5 {[%emt 0:01:07]} exd5 {[%emt 0:00:09]} 6. Bg5 {[%emt 0:00:11]} h6 {[%emt 0:00:21]} 7. Bh4 {[%emt 0:00:06]} O-O {[%emt 0:00:32] D38: Queen's Gambit Declined: Ragozin Defence (4 Nf3 Bb4).} 8. e3 {[%emt 0:02:02]} Bf5 {[%emt 0:01:00]} 9. Bxf6 {[%emt 0:14:52]} Qxf6 {[%emt 0:01:37] The position is equal.} 10. Be2 {[%emt 0:00:11]} c6 {[%emt 0:06:10]} 11. O-O {[%emt 0:04:08] [#]} Nd7 $146 {[%emt 0:03:14]} ({Predecessor:} 11... a5 12. a3 Bd6 13. Bd3 Bg4 14. h3 Bh5 15. Be2 Nd7 16. Nd2 Bg6 17. Bg4 Rad8 {0-1 Ardila,O (2017)-Okike,D (2177) Titled Tuesday intern op 6th June blitz 2020 (8)}) 12. Rc1 {[%emt 0:06:43]} a5 {[%emt 0:07:12]} 13. Bd3 {[%emt 0:09:11]} Bg4 {[%emt 0:20:54][%cal Bf5g4,Bg4h5,Bh5g6][%mdl 32]} 14. h3 {[%emt 0:00:24]} Bh5 {[%emt 0:05:50]} 15. a3 {[%emt 0:16:25]} Bd6 {[%emt 0:06:41]} 16. Be2 {[%emt 0:04:18]} Bg6 {[%emt 0:04:10]} 17. Bd3 {[%emt 0:00:11]} Bh5 {[%emt 0:01:25]} 18. Be2 {[%emt 0:00:11]} Rfe8 {[%emt 0:00:30]} 19. Qb3 {[%emt 0:08:14]} b5 {[%emt 0:06:42]} 20. Qc2 {[%emt 0:01:02]} (20. a4 $5 {[%cal Ra4b5]} b4 21. Nb1 $11) 20... a4 {[%emt 0:09:57]} 21. Nd2 {[%emt 0:03:58]} Bxe2 {[%emt 0:02:21]} 22. Nxe2 {[%emt 0:00:05]} Rac8 {[%emt 0:00:08]} 23. e4 {[%emt 0:02:20]} dxe4 $40 {[%emt 0:01:57][%mdl 128] Black attacks.} 24. Nxe4 {[%emt 0:02:01]} Qg6 {[%emt 0:00:23]} 25. Nxd6 {[%emt 0:07:11]} Qxd6 {[%emt 0:00:03]} 26. d5 {[%emt 0:01:35]} Qxd5 {[%emt 0:08:34]} 27. Rfd1 {[%emt 0:00:26]} Qg5 {[%emt 0:01:40]} 28. h4 {[%emt 0:09:15]} (28. f4 $142 Qd8 29. Nd4) 28... Qg4 {[%emt 0:04:09] Black is more active.} ({Much less strong is} 28... Qxh4 29. Rxd7 Qg4 30. Rd2 $18) 29. f3 {[%emt 0:00:07]} Qe6 {[%emt 0:00:05] White must now prevent ...Qe3+.} ({Don't play} 29... Qxh4 30. Rxd7 Re5 31. Rd4 $18) 30. Nd4 {[%emt 0:00:32]} Qf6 {[%emt 0:04:17]} (30... Qe3+ $142 31. Qf2 Qxf2+ 32. Kxf2 Ne5) 31. Nf5 {[%emt 0:00:42]} Re5 {[%emt 0:03:04]} 32. Nd6 {[%emt 0:01:12]} Rc7 {[%emt 0:00:28]} 33. Qf2 {[%emt 0:00:51]} Nf8 {[%emt 0:00:26]} 34. Ne4 {[%emt 0:01:54] [#]} Qe7 {[%emt 0:00:06]} 35. Qb6 {[%emt 0:00:12]} f5 {[%emt 0:01:07]} 36. Nf2 {[%emt 0:00:45] Now White is beyond hope.} (36. Ng3 $17) 36... Rc8 {[%emt 0:00:19]} 37. Nd3 {[%emt 0:00:54]} (37. Nh3 $142) 37... Rd5 {[%emt 0:00:54] aiming for ...Rcd8.} 38. Nb4 {[%emt 0:00:33]} Rxd1+ {[%emt 0:00:09]} 39. Rxd1 {[%emt 0:00:00]} Qxh4 {[%emt 0:00:28]} 40. Qc5 {[%emt 0:00:31]} Qg5 {[%emt 0:00:51]} 41. Nxc6 {[%emt 0:06:05]} Ng6 {[%emt 0:14:21] Prevents Ne7+.} 42. Qxb5 {[%emt 0:14:31]} Nh4 $1 {[%emt 0:07:01][%csl Gh4,LRf3,LRg2][%cal Rg5g2]} 43. Qd5+ {[%emt 0:03:31]} Kh7 {[%emt 0:00:05][%csl Gh4][%cal Rg5g2]} ({Wrong is} 43... Kh8 $2 44. f4 Qxf4 45. Re1 $19) 44. f4 {[%emt 0:00:04]} Qxf4 {[%emt 0:00:25] ...Re8 would be deadly.} 45. Nd4 {[%emt 0:03:07]} (45. Re1 $142) 45... Qg4 $19 {[%emt 0:03:44] ( -> ...Rd8)} 46. Rf1 {[%emt 0:05:10][%cal Rd4f5] [#]} Rd8 $3 {[%emt 0:00:13][%mdl 512] Weighted Error Value: White=0.40/Black=0.09 (flawless)} 0-1